[Event "Late-Titled-Tuesday-Blitz-August-29-2023"]
[Site "Chess.com"]
[Date "2023.08.29"]
[Round "4"]
[White "cottage_cheese"]
[Black "RCone"]
[Result "1-0"]
[WhiteElo "2299"]
[BlackElo "2438"]
[TimeControl "180+1"]
[EndTime "14:38:59 PDT"]
[Termination "cottage_cheese won on time"]

1. e4 {[%clk 0:03:00.9]} 1... d6 {[%clk 0:02:59.8]} 2. d4 {[%clk 0:03:00.5]}
2... Nf6 {[%clk 0:03:00]} 3. Nc3 {[%clk 0:03:00.7]} 3... g6 {[%clk 0:02:59.8]}
4. Nf3 {[%clk 0:03:01.1]} 4... Bg7 {[%clk 0:02:59.5]} 5. Be2 {[%clk 0:03:01.5]}
5... O-O {[%clk 0:02:59.1]} 6. O-O {[%clk 0:03:01.6]} 6... Nc6 {[%clk
0:02:59.5]} 7. Re1 {[%clk 0:02:58.6]} 7... e5 {[%clk 0:02:59]} 8. d5 {[%clk
0:02:57.9]} 8... Ne7 {[%clk 0:02:58.1]} 9. Na4 {[%clk 0:02:57.2]} 9... Bd7
{[%clk 0:02:55.9]} 10. Nc3 {[%clk 0:02:52.5]} 10... h6 {[%clk 0:02:42.4]} 11.
Bb5 {[%clk 0:02:50.4]} 11... Bc8 {[%clk 0:02:41.1]} 12. Na4 {[%clk 0:02:44.2]}
12... a6 {[%clk 0:02:38.9]} 13. Bf1 {[%clk 0:02:42.6]} 13... b5 {[%clk
0:02:39.3]} 14. Nc3 {[%clk 0:02:42.7]} 14... Nh7 {[%clk 0:02:39.9]} 15. a4
{[%clk 0:02:41.7]} 15... b4 {[%clk 0:02:40.3]} 16. Nb1 {[%clk 0:02:37.3]} 16...
f5 {[%clk 0:02:36.2]} 17. exf5 {[%clk 0:02:36.6]} 17... gxf5 {[%clk 0:02:35]}
18. c3 {[%clk 0:02:32.8]} 18... a5 {[%clk 0:02:23.5]} 19. cxb4 {[%clk
0:02:22.7]} 19... axb4 {[%clk 0:02:24.4]} 20. Qb3 {[%clk 0:02:21.1]} 20... Nf6
{[%clk 0:02:14.5]} 21. Bc4 {[%clk 0:02:17.7]} 21... Kh8 {[%clk 0:02:13.7]} 22.
Qxb4 {[%clk 0:01:55.9]} 22... Nexd5 {[%clk 0:02:12.8]} 23. Qb3 {[%clk
0:01:46.8]} 23... Nb6 {[%clk 0:02:00.2]} 24. Bb5 {[%clk 0:01:38.6]} 24... Bb7
{[%clk 0:01:54.3]} 25. Nh4 {[%clk 0:01:27.9]} 25... Bd5 {[%clk 0:01:44.7]} 26.
Qh3 {[%clk 0:01:21]} 26... Kg8 {[%clk 0:01:12.9]} 27. Nxf5 {[%clk 0:01:13.2]}
27... h5 {[%clk 0:01:03.8]} 28. Qg3 {[%clk 0:00:54.4]} 28... Ng4 {[%clk
0:01:02.2]} 29. Nxg7 {[%clk 0:00:53.7]} 29... Kxg7 {[%clk 0:01:02.8]} 30. h3
{[%clk 0:00:53.8]} 30... c6 {[%clk 0:00:49.1]} 31. Bd3 {[%clk 0:00:43.6]} 31...
Rxf2 {[%clk 0:00:30.4]} 32. Be4 {[%clk 0:00:29.1]} 32... Bxe4 {[%clk 0:00:29.2]}
33. Rxe4 {[%clk 0:00:29]} 33... Qf6 {[%clk 0:00:28.6]} 34. Rxg4+ {[%clk
0:00:27]} 34... hxg4 {[%clk 0:00:28.4]} 35. Qxf2 {[%clk 0:00:27.1]} 35... Qxf2+
{[%clk 0:00:16.9]} 36. Kxf2 {[%clk 0:00:28]} 36... gxh3 {[%clk 0:00:16.9]} 37.
gxh3 {[%clk 0:00:27.6]} 37... Nxa4 {[%clk 0:00:11.6]} 38. Kg3 {[%clk 0:00:25.2]}
38... Kf6 {[%clk 0:00:11.4]} 39. Kh2 {[%clk 0:00:23.4]} 39... d5 {[%clk
0:00:08.7]} 40. b3 {[%clk 0:00:22.3]} 40... Nb6 {[%clk 0:00:08.6]} 41. Rxa8
{[%clk 0:00:23.1]} 41... Nxa8 {[%clk 0:00:09.5]} 42. h4 {[%clk 0:00:22]} 42...
Nc7 {[%clk 0:00:08.3]} 43. Nc3 {[%clk 0:00:18.4]} 43... Ne6 {[%clk 0:00:08.2]}
44. Kg3 {[%clk 0:00:13.9]} 44... Nd4 {[%clk 0:00:08.4]} 45. b4 {[%clk
0:00:12.4]} 45... Nc2 {[%clk 0:00:04.1]} 46. Bg5+ {[%clk 0:00:11.2]} 46... Kf5
{[%clk 0:00:03.5]} 47. b5 {[%clk 0:00:09.5]} 47... cxb5 {[%clk 0:00:01.7]} 48.
Nxd5 {[%clk 0:00:09.6]} 48... b4 {[%clk 0:00:01.3]} 49. Bc1 {[%clk 0:00:06.9]}
1-0

[Event "Late-Titled-Tuesday-Blitz-August-29-2023"]
[Site "Chess.com"]
[Date "2023.08.29"]
[Round "4"]
[White "sergoy"]
[Black "Bauman_Guy"]
[Result "1-0"]
[WhiteElo "2969"]
[BlackElo "2845"]
[TimeControl "180+1"]
[EndTime "14:39:01 PDT"]
[Termination "sergoy won on time"]

1. d4 {[%clk 0:03:00.9]} 1... Nf6 {[%clk 0:02:59.9]} 2. c4 {[%clk 0:03:01.5]}
2... b6 {[%clk 0:03:00.5]} 3. f3 {[%clk 0:03:01.2]} 3... Bb7 {[%clk 0:02:54.7]}
4. e4 {[%clk 0:03:00.7]} 4... e6 {[%clk 0:02:55.2]} 5. Nc3 {[%clk 0:02:54.6]}
5... Bb4 {[%clk 0:02:55.3]} 6. e5 {[%clk 0:02:54.7]} 6... Ng8 {[%clk 0:02:51.2]}
7. Bf4 {[%clk 0:02:49.8]} 7... Ne7 {[%clk 0:02:48.7]} 8. Bd3 {[%clk 0:02:46.1]}
8... Nbc6 {[%clk 0:02:45.5]} 9. Ne2 {[%clk 0:02:45.4]} 9... d6 {[%clk
0:02:45.9]} 10. exd6 {[%clk 0:02:29.1]} 10... Bxd6 {[%clk 0:02:46.8]} 11. Be3
{[%clk 0:02:29.5]} 11... Nf5 {[%clk 0:02:40]} 12. Bf2 {[%clk 0:02:08.5]} 12...
Qg5 {[%clk 0:02:39.4]} 13. g4 {[%clk 0:01:20.3]} 13... Nh4 {[%clk 0:02:31.7]}
14. Be4 {[%clk 0:01:20]} 14... f5 {[%clk 0:02:02.5]} 15. gxf5 {[%clk 0:01:09.6]}
15... exf5 {[%clk 0:02:03.4]} 16. Bd5 {[%clk 0:01:10.1]} 16... O-O-O {[%clk
0:01:50.6]} 17. Qa4 {[%clk 0:00:25.9]} 17... Nb4 {[%clk 0:01:24.2]} 18. Bxb7+
{[%clk 0:00:26.1]} 18... Kxb7 {[%clk 0:01:23.9]} 19. Bxh4 {[%clk 0:00:12.8]}
19... Qxh4+ {[%clk 0:01:15]} 20. Kd1 {[%clk 0:00:11.7]} 20... Bc5 {[%clk
0:00:51.1]} 21. a3 {[%clk 0:00:12]} 21... Nd3 {[%clk 0:00:42.6]} 22. Kc2 {[%clk
0:00:11.2]} 22... Bxd4 {[%clk 0:00:42.9]} 23. Kxd3 {[%clk 0:00:09]} 23... Bxc3+
{[%clk 0:00:32.9]} 24. Kxc3 {[%clk 0:00:09.2]} 24... Rhe8 {[%clk 0:00:33.6]} 25.
Ng3 {[%clk 0:00:08.2]} 25... Re3+ {[%clk 0:00:26.6]} 26. Kc2 {[%clk 0:00:08.6]}
26... f4 {[%clk 0:00:27.1]} 27. Ne4 {[%clk 0:00:08.4]} 27... Qh3 {[%clk
0:00:19.2]} 28. Rhd1 {[%clk 0:00:08.7]} 28... Re2+ {[%clk 0:00:11]} 29. Kb1
{[%clk 0:00:08.4]} 29... Rxd1+ {[%clk 0:00:10.3]} 30. Qxd1 {[%clk 0:00:09.3]}
30... Qxf3 {[%clk 0:00:10.8]} 31. Qd5+ {[%clk 0:00:09.8]} 31... Kb8 {[%clk
0:00:11.3]} 32. Qg8+ {[%clk 0:00:09.8]} 32... Kb7 {[%clk 0:00:11.2]} 33. Qd5+
{[%clk 0:00:10.5]} 33... Kb8 {[%clk 0:00:11.1]} 34. Nc3 {[%clk 0:00:11]} 34...
Qxd5 {[%clk 0:00:09.2]} 35. cxd5 {[%clk 0:00:11.6]} 35... Rxh2 {[%clk 0:00:09]}
36. Ka2 {[%clk 0:00:12.3]} 36... g5 {[%clk 0:00:09.3]} 37. Re1 {[%clk
0:00:11.3]} 37... f3 {[%clk 0:00:09.4]} 38. Re8+ {[%clk 0:00:11.3]} 38... Kb7
{[%clk 0:00:09.8]} 39. Re7 {[%clk 0:00:11.8]} 39... Kc8 {[%clk 0:00:10.2]} 40.
Rf7 {[%clk 0:00:11.7]} 40... g4 {[%clk 0:00:10.4]} 41. Ne4 {[%clk 0:00:12.2]}
41... Re2 {[%clk 0:00:08.9]} 42. Nc3 {[%clk 0:00:08.6]} 42... Re5 {[%clk
0:00:08.1]} 43. Kb3 {[%clk 0:00:08.6]} 43... h5 {[%clk 0:00:07.8]} 44. Kc4
{[%clk 0:00:09.3]} 44... h4 {[%clk 0:00:07.3]} 45. Nb5 {[%clk 0:00:09.9]} 45...
h3 {[%clk 0:00:06.2]} 46. Rxc7+ {[%clk 0:00:09.2]} 46... Kd8 {[%clk 0:00:06.4]}
47. Rf7 {[%clk 0:00:05.8]} 47... h2 {[%clk 0:00:06.1]} 48. d6 {[%clk 0:00:03.2]}
48... Rxb5 {[%clk 0:00:05.5]} 49. Rf8+ {[%clk 0:00:02.5]} 1-0

[Event "Late-Titled-Tuesday-Blitz-August-29-2023"]
[Site "Chess.com"]
[Date "2023.08.29"]
[Round "4"]
[White "Jojo_898"]
[Black "Mourinho_Jose"]
[Result "0-1"]
[WhiteElo "2361"]
[BlackElo "2501"]
[TimeControl "180+1"]
[EndTime "14:39:01 PDT"]
[Termination "Mourinho_Jose won by resignation"]

1. e4 {[%clk 0:03:00.9]} 1... e5 {[%clk 0:02:59.1]} 2. Nf3 {[%clk 0:03:00.2]}
2... Nf6 {[%clk 0:02:59.4]} 3. Nxe5 {[%clk 0:02:59.2]} 3... d6 {[%clk
0:02:59.8]} 4. Nf3 {[%clk 0:02:59.9]} 4... Nxe4 {[%clk 0:03:00.3]} 5. Nc3 {[%clk
0:03:00.6]} 5... Nxc3 {[%clk 0:03:00.7]} 6. dxc3 {[%clk 0:03:01.5]} 6... Be7
{[%clk 0:03:00.6]} 7. Bd3 {[%clk 0:03:01.9]} 7... Nc6 {[%clk 0:03:01.1]} 8. Be3
{[%clk 0:03:02.3]} 8... Be6 {[%clk 0:03:01.6]} 9. Qd2 {[%clk 0:03:02.8]} 9...
Qd7 {[%clk 0:03:02]} 10. a3 {[%clk 0:03:00.9]} 10... Bf6 {[%clk 0:03:01.5]} 11.
O-O-O {[%clk 0:03:00.6]} 11... O-O-O {[%clk 0:03:01.2]} 12. Nd4 {[%clk 0:02:59]}
12... Nxd4 {[%clk 0:02:59.2]} 13. cxd4 {[%clk 0:02:59.5]} 13... d5 {[%clk
0:02:59.2]} 14. Qa5 {[%clk 0:02:56.9]} 14... Kb8 {[%clk 0:02:55.1]} 15. Kb1
{[%clk 0:02:40.8]} 15... Bf5 {[%clk 0:02:49.1]} 16. Bb5 {[%clk 0:02:30.4]} 16...
Qd6 {[%clk 0:02:45.4]} 17. f3 {[%clk 0:02:23.1]} 17... Qb6 {[%clk 0:02:35.1]}
18. Qa4 {[%clk 0:02:15.4]} 18... c6 {[%clk 0:02:20.5]} 19. Bd3 {[%clk
0:02:15.2]} 19... Bxd3 {[%clk 0:02:11.1]} 20. Rxd3 {[%clk 0:02:16.1]} 20... Rhe8
{[%clk 0:02:05.4]} 21. Bf4+ {[%clk 0:02:12.3]} 21... Ka8 {[%clk 0:02:02.9]} 22.
Rhd1 {[%clk 0:02:12.8]} 22... Qb5 {[%clk 0:01:44.1]} 23. Qxb5 {[%clk 0:01:52.8]}
23... cxb5 {[%clk 0:01:45]} 24. R1d2 {[%clk 0:01:45.4]} 24... Re1+ {[%clk
0:01:41.3]} 25. Ka2 {[%clk 0:01:44.9]} 25... Rc8 {[%clk 0:01:31.7]} 26. g4
{[%clk 0:01:41.7]} 26... g6 {[%clk 0:01:27.5]} 27. Re3 {[%clk 0:01:27.4]} 27...
Rxe3 {[%clk 0:01:22.8]} 28. Bxe3 {[%clk 0:01:28.3]} 28... Re8 {[%clk 0:01:22.7]}
29. Rd3 {[%clk 0:01:27.5]} 29... b6 {[%clk 0:01:12.2]} 30. Kb3 {[%clk
0:01:25.4]} 30... Kb7 {[%clk 0:01:11]} 31. Kc3 {[%clk 0:01:23.6]} 31... h5
{[%clk 0:01:01.6]} 32. g5 {[%clk 0:01:14.1]} 32... Bd8 {[%clk 0:00:51.3]} 33. h4
{[%clk 0:01:10.7]} 33... Bc7 {[%clk 0:00:50.7]} 34. Bf2 {[%clk 0:01:06.4]} 34...
Re2 {[%clk 0:00:49.7]} 35. Rd2 {[%clk 0:01:06.7]} 35... Rxd2 {[%clk 0:00:43.3]}
36. Kxd2 {[%clk 0:01:06.8]} 36... Bf4+ {[%clk 0:00:43.6]} 37. Kd3 {[%clk
0:01:02.7]} 37... Kc6 {[%clk 0:00:43.6]} 38. Kc3 {[%clk 0:00:43.1]} 38... a5
{[%clk 0:00:39.9]} 39. Kd3 {[%clk 0:00:40.7]} 39... Kd7 {[%clk 0:00:39.4]} 40.
b3 {[%clk 0:00:39.4]} 40... a4 {[%clk 0:00:16.6]} 41. bxa4 {[%clk 0:00:35.5]}
41... bxa4 {[%clk 0:00:17.5]} 42. c4 {[%clk 0:00:36.1]} 42... Kc6 {[%clk
0:00:15.3]} 43. c5 {[%clk 0:00:12.6]} 43... Bc1 {[%clk 0:00:12.4]} 44. cxb6
{[%clk 0:00:06.7]} 44... Bxa3 {[%clk 0:00:12.7]} 45. Bg3 {[%clk 0:00:03.7]}
45... Kxb6 {[%clk 0:00:13]} 46. Kc3 {[%clk 0:00:03.2]} 46... Kb5 {[%clk
0:00:13.1]} 47. Be5 {[%clk 0:00:03.4]} 47... Bb4+ {[%clk 0:00:12.9]} 48. Kb2
{[%clk 0:00:02.8]} 48... Be1 {[%clk 0:00:13.8]} 49. f4 {[%clk 0:00:01.5]} 0-1

[Event "Late-Titled-Tuesday-Blitz-August-29-2023"]
[Site "Chess.com"]
[Date "2023.08.29"]
[Round "4"]
[White "Semetey"]
[Black "Mili_Brizzi"]
[Result "1-0"]
[WhiteElo "2584"]
[BlackElo "2024"]
[TimeControl "180+1"]
[EndTime "14:39:01 PDT"]
[Termination "Semetey won on time"]

1. e4 {[%clk 0:02:55.9]} 1... c6 {[%clk 0:02:57.8]} 2. d4 {[%clk 0:02:54]} 2...
d5 {[%clk 0:02:57.3]} 3. e5 {[%clk 0:02:54.4]} 3... Bf5 {[%clk 0:02:57]} 4. c4
{[%clk 0:02:54.9]} 4... e6 {[%clk 0:02:57]} 5. Nc3 {[%clk 0:02:54.7]} 5... Ne7
{[%clk 0:02:52.6]} 6. h3 {[%clk 0:02:54.8]} 6... dxc4 {[%clk 0:02:45.3]} 7. Bxc4
{[%clk 0:02:54.1]} 7... Nd7 {[%clk 0:02:45.5]} 8. Nge2 {[%clk 0:02:52.1]} 8...
Nb6 {[%clk 0:02:45.3]} 9. Bd3 {[%clk 0:02:52.3]} 9... Bxd3 {[%clk 0:02:43]} 10.
Qxd3 {[%clk 0:02:53.2]} 10... Ned5 {[%clk 0:02:41.8]} 11. O-O {[%clk 0:02:49]}
11... Be7 {[%clk 0:02:41.4]} 12. Ne4 {[%clk 0:02:47.3]} 12... O-O {[%clk
0:02:38.8]} 13. a3 {[%clk 0:02:40.5]} 13... Qd7 {[%clk 0:02:28.3]} 14. Bg5
{[%clk 0:02:22.4]} 14... Rad8 {[%clk 0:02:07.7]} 15. Rad1 {[%clk 0:02:18.9]}
15... h6 {[%clk 0:01:56.9]} 16. Bc1 {[%clk 0:02:17]} 16... Qc7 {[%clk
0:01:40.9]} 17. b4 {[%clk 0:01:04.9]} 17... Rd7 {[%clk 0:01:28.9]} 18. f4 {[%clk
0:01:04]} 18... Rfd8 {[%clk 0:01:28.1]} 19. f5 {[%clk 0:01:03.5]} 19... exf5
{[%clk 0:01:27.7]} 20. Rxf5 {[%clk 0:01:02.7]} 20... Qc8 {[%clk 0:01:22.5]} 21.
Qg3 {[%clk 0:00:58.5]} 21... Nc7 {[%clk 0:01:11.5]} 22. Bxh6 {[%clk 0:00:57.2]}
22... Ne6 {[%clk 0:01:11.4]} 23. Rdf1 {[%clk 0:00:46.7]} 23... Bf8 {[%clk
0:00:42.8]} 24. Nf6+ {[%clk 0:00:45.2]} 24... Kh8 {[%clk 0:00:42.2]} 25. Nxd7
{[%clk 0:00:44.9]} 25... Rxd7 {[%clk 0:00:42.8]} 26. Rxf7 {[%clk 0:00:43]} 26...
Rxf7 {[%clk 0:00:40.1]} 27. Rxf7 {[%clk 0:00:43.9]} 27... gxh6 {[%clk
0:00:38.9]} 28. Qg6 {[%clk 0:00:29.4]} 28... Ng5 {[%clk 0:00:34.1]} 29. Qf6+
{[%clk 0:00:18.3]} 29... Kg8 {[%clk 0:00:32.9]} 30. Qg6+ {[%clk 0:00:18.3]}
30... Kh8 {[%clk 0:00:32.7]} 31. Rf6 {[%clk 0:00:17.1]} 31... Nd5 {[%clk
0:00:29.5]} 32. Rf5 {[%clk 0:00:14.9]} 32... Ne7 {[%clk 0:00:27.4]} 33. Qf6+
{[%clk 0:00:14.5]} 33... Kg8 {[%clk 0:00:27.5]} 34. Nf4 {[%clk 0:00:14]} 34...
Nxf5 {[%clk 0:00:27.1]} 35. Qg6+ {[%clk 0:00:12.6]} 35... Bg7 {[%clk 0:00:26.7]}
36. Nh5 {[%clk 0:00:12.5]} 36... Qe6 {[%clk 0:00:21.7]} 37. Nf6+ {[%clk
0:00:12.6]} 37... Kh8 {[%clk 0:00:20.3]} 38. h4 {[%clk 0:00:12]} 38... Bxf6
{[%clk 0:00:18.3]} 39. hxg5 {[%clk 0:00:11.6]} 39... hxg5 {[%clk 0:00:15.5]} 40.
exf6 {[%clk 0:00:11.6]} 40... Qe1+ {[%clk 0:00:13.9]} 41. Kh2 {[%clk 0:00:12.1]}
41... Qg3+ {[%clk 0:00:13.4]} 42. Kh1 {[%clk 0:00:12.5]} 42... Qh4+ {[%clk
0:00:10.1]} 43. Kg1 {[%clk 0:00:12.7]} 43... Qxd4+ {[%clk 0:00:09.1]} 44. Kh2
{[%clk 0:00:11.9]} 44... Qe5+ {[%clk 0:00:07.9]} 45. Kg1 {[%clk 0:00:12.1]}
45... Qe3+ {[%clk 0:00:05.9]} 46. Kh2 {[%clk 0:00:12.3]} 46... Qg3+ {[%clk
0:00:05.6]} 47. Kg1 {[%clk 0:00:12.5]} 47... Qe1+ {[%clk 0:00:05.3]} 48. Kh2
{[%clk 0:00:12.7]} 48... Qh4+ {[%clk 0:00:05]} 49. Kg1 {[%clk 0:00:12.6]} 49...
Qh7 {[%clk 0:00:02.9]} 50. Qxg5 {[%clk 0:00:11.9]} 50... Nd6 {[%clk 0:00:01.7]}
51. Qe5 {[%clk 0:00:11.6]} 1-0

[Event "Late-Titled-Tuesday-Blitz-August-29-2023"]
[Site "Chess.com"]
[Date "2023.08.29"]
[Round "4"]
[White "gordonzyxu"]
[Black "eldur16"]
[Result "0-1"]
[WhiteElo "2113"]
[BlackElo "2631"]
[TimeControl "180+1"]
[EndTime "14:39:03 PDT"]
[Termination "eldur16 won by resignation"]

1. e4 {[%clk 0:03:00.9]} 1... e5 {[%clk 0:02:56.7]} 2. Nf3 {[%clk 0:03:01.3]}
2... Nc6 {[%clk 0:02:56.9]} 3. Bb5 {[%clk 0:03:01.7]} 3... a6 {[%clk 0:02:56.2]}
4. Ba4 {[%clk 0:03:02]} 4... Nf6 {[%clk 0:02:56.3]} 5. O-O {[%clk 0:03:01.4]}
5... Be7 {[%clk 0:02:55.9]} 6. Re1 {[%clk 0:03:00.2]} 6... b5 {[%clk 0:02:55.9]}
7. Bb3 {[%clk 0:03:00.3]} 7... d6 {[%clk 0:02:56.1]} 8. h3 {[%clk 0:02:59.6]}
8... O-O {[%clk 0:02:55.2]} 9. c3 {[%clk 0:03:00.2]} 9... Nb8 {[%clk 0:02:54.3]}
10. d4 {[%clk 0:02:59.5]} 10... Nbd7 {[%clk 0:02:54.3]} 11. c4 {[%clk
0:03:00.1]} 11... c6 {[%clk 0:02:53.6]} 12. Nc3 {[%clk 0:03:00.3]} 12... Bb7
{[%clk 0:02:52.1]} 13. cxb5 {[%clk 0:02:52.4]} 13... axb5 {[%clk 0:02:51.4]} 14.
Bg5 {[%clk 0:02:42.2]} 14... h6 {[%clk 0:02:49.6]} 15. Bh4 {[%clk 0:02:37.1]}
15... b4 {[%clk 0:02:45.9]} 16. Nb1 {[%clk 0:02:30.7]} 16... Nh5 {[%clk
0:02:33.7]} 17. Bxe7 {[%clk 0:02:23.6]} 17... Qxe7 {[%clk 0:02:33.2]} 18. Nbd2
{[%clk 0:02:22.2]} 18... Nf4 {[%clk 0:02:30.7]} 19. Nf1 {[%clk 0:02:21.7]} 19...
c5 {[%clk 0:02:18.5]} 20. dxc5 {[%clk 0:02:16.2]} 20... Nxc5 {[%clk 0:02:17.3]}
21. Bc2 {[%clk 0:02:15.4]} 21... Bc6 {[%clk 0:02:12.5]} 22. Ng3 {[%clk
0:02:15.5]} 22... g6 {[%clk 0:02:10.5]} 23. a3 {[%clk 0:02:05.4]} 23... bxa3
{[%clk 0:02:08.5]} 24. bxa3 {[%clk 0:02:04.1]} 24... h5 {[%clk 0:02:01.8]} 25.
Ne2 {[%clk 0:02:02.2]} 25... Nxe2+ {[%clk 0:01:56.8]} 26. Qxe2 {[%clk
0:02:01.8]} 26... Rfb8 {[%clk 0:01:56]} 27. Nd2 {[%clk 0:01:49.9]} 27... Rb2
{[%clk 0:01:50.3]} 28. Nc4 {[%clk 0:01:48.4]} 28... Bb5 {[%clk 0:01:48.5]} 29.
Reb1 {[%clk 0:01:31.5]} 29... Rxb1+ {[%clk 0:01:44.2]} 30. Bxb1 {[%clk
0:01:25.9]} 30... Ra4 {[%clk 0:01:38.7]} 31. Ba2 {[%clk 0:01:19.9]} 31... Qc7
{[%clk 0:01:26.9]} 32. Rc1 {[%clk 0:01:14.4]} 32... Qc6 {[%clk 0:01:14.1]} 33.
f3 {[%clk 0:01:12.6]} 33... Rxa3 {[%clk 0:01:10.5]} 34. Qb2 {[%clk 0:01:06.5]}
34... Ra8 {[%clk 0:01:06.4]} 35. Nxe5 {[%clk 0:01:00.1]} 35... dxe5 {[%clk
0:01:04.4]} 36. Bd5 {[%clk 0:01:00.3]} 36... Qb6 {[%clk 0:00:57.2]} 37. Qf2
{[%clk 0:00:51.4]} 37... Rc8 {[%clk 0:00:56.5]} 38. Rb1 {[%clk 0:00:48.7]} 38...
Qa6 {[%clk 0:00:50.2]} 39. Qb2 {[%clk 0:00:41.5]} 39... Bd3 {[%clk 0:00:46.4]}
40. Rc1 {[%clk 0:00:39.1]} 40... Nd7 {[%clk 0:00:44.7]} 41. Rd1 {[%clk
0:00:36.5]} 41... Rc2 {[%clk 0:00:42.2]} 42. Qb3 {[%clk 0:00:33.5]} 42... Qa7+
{[%clk 0:00:40.3]} 43. Kh1 {[%clk 0:00:28.3]} 43... Nc5 {[%clk 0:00:39.3]} 44.
Qb4 {[%clk 0:00:21.3]} 44... Kg7 {[%clk 0:00:37.7]} 45. Bb3 {[%clk 0:00:17.8]}
45... Nxb3 {[%clk 0:00:36.6]} 46. Qxb3 {[%clk 0:00:18.7]} 46... Qf2 {[%clk
0:00:35.2]} 47. Rg1 {[%clk 0:00:19.1]} 47... Bc4 {[%clk 0:00:34.7]} 48. Qb8
{[%clk 0:00:18.3]} 48... Qd4 {[%clk 0:00:33]} 49. Qc7 {[%clk 0:00:16.7]} 49...
Bb3 {[%clk 0:00:32]} 50. Qe7 {[%clk 0:00:16.6]} 50... Be6 {[%clk 0:00:31.5]} 51.
Qg5 {[%clk 0:00:16.7]} 51... Qc3 {[%clk 0:00:29.4]} 52. h4 {[%clk 0:00:15.2]}
52... f6 {[%clk 0:00:28.5]} 53. Qg3 {[%clk 0:00:15]} 53... Rc1 {[%clk
0:00:28.5]} 54. Kh2 {[%clk 0:00:14.7]} 54... Rxg1 {[%clk 0:00:28.2]} 55. Kxg1
{[%clk 0:00:15.6]} 55... Qc1+ {[%clk 0:00:28.1]} 56. Kh2 {[%clk 0:00:16.2]}
56... Qf4 {[%clk 0:00:28.1]} 57. Qxf4 {[%clk 0:00:16.6]} 57... exf4 {[%clk
0:00:27.8]} 58. g3 {[%clk 0:00:16.4]} 58... fxg3+ {[%clk 0:00:27.9]} 59. Kxg3
{[%clk 0:00:17.1]} 59... Kf7 {[%clk 0:00:28.1]} 60. Kf4 {[%clk 0:00:16.1]} 60...
Bb3 {[%clk 0:00:27.3]} 61. Kg3 {[%clk 0:00:16.2]} 61... Bd1 {[%clk 0:00:27.2]}
62. Kf4 {[%clk 0:00:15]} 62... Ke6 {[%clk 0:00:27.2]} 63. Kg3 {[%clk 0:00:14.9]}
63... Ke5 {[%clk 0:00:27.2]} 64. Kg2 {[%clk 0:00:09.9]} 64... Kf4 {[%clk
0:00:27.2]} 0-1

[Event "Late-Titled-Tuesday-Blitz-August-29-2023"]
[Site "Chess.com"]
[Date "2023.08.29"]
[Round "4"]
[White "aqibjbutt"]
[Black "ariosp"]
[Result "0-1"]
[WhiteElo "1987"]
[BlackElo "2242"]
[TimeControl "180+1"]
[EndTime "14:39:04 PDT"]
[Termination "ariosp won by resignation"]

1. d4 {[%clk 0:02:57.2]} 1... Nf6 {[%clk 0:02:58.9]} 2. g3 {[%clk 0:02:56.3]}
2... e6 {[%clk 0:02:58.3]} 3. Bg2 {[%clk 0:02:55.6]} 3... c5 {[%clk 0:02:57.9]}
4. c3 {[%clk 0:02:48.4]} 4... d5 {[%clk 0:02:55.5]} 5. Nf3 {[%clk 0:02:47.8]}
5... Nc6 {[%clk 0:02:55.4]} 6. O-O {[%clk 0:02:47.7]} 6... Be7 {[%clk
0:02:53.2]} 7. dxc5 {[%clk 0:02:46]} 7... Bxc5 {[%clk 0:02:52.3]} 8. Bg5 {[%clk
0:02:33.8]} 8... h6 {[%clk 0:02:50.8]} 9. Bxf6 {[%clk 0:02:33.8]} 9... Qxf6
{[%clk 0:02:50]} 10. Nbd2 {[%clk 0:02:34.7]} 10... O-O {[%clk 0:02:44.9]} 11. e4
{[%clk 0:02:34]} 11... Rd8 {[%clk 0:02:42.6]} 12. Qc2 {[%clk 0:02:33.6]} 12...
Bb6 {[%clk 0:02:36.9]} 13. exd5 {[%clk 0:02:33.2]} 13... Rxd5 {[%clk 0:02:36.5]}
14. Rad1 {[%clk 0:02:18.3]} 14... Qe7 {[%clk 0:02:25.6]} 15. Nc4 {[%clk
0:02:17.4]} 15... Rxd1 {[%clk 0:02:23.5]} 16. Rxd1 {[%clk 0:02:14.9]} 16... Bc7
{[%clk 0:02:23.1]} 17. Nd4 {[%clk 0:02:08.3]} 17... Nxd4 {[%clk 0:02:15.9]} 18.
Rxd4 {[%clk 0:02:06.6]} 18... Rb8 {[%clk 0:02:14.7]} 19. Qd2 {[%clk 0:01:55.7]}
19... b5 {[%clk 0:02:09.2]} 20. Ne3 {[%clk 0:01:50.9]} 20... Bb6 {[%clk
0:02:04.1]} 21. Rd3 {[%clk 0:01:37.2]} 21... a6 {[%clk 0:02:03.1]} 22. Ng4
{[%clk 0:01:18.6]} 22... Qg5 {[%clk 0:01:52.6]} 23. Qxg5 {[%clk 0:01:15.6]}
23... hxg5 {[%clk 0:01:51.6]} 24. Ne5 {[%clk 0:01:16.1]} 24... Kf8 {[%clk
0:01:43.3]} 25. Nc6 {[%clk 0:01:10.8]} 25... Rb7 {[%clk 0:01:42.7]} 26. Nb4
{[%clk 0:01:06.1]} 26... Ra7 {[%clk 0:01:35.2]} 27. Nc6 {[%clk 0:01:05.9]} 27...
Rd7 {[%clk 0:01:34.7]} 28. Rxd7 {[%clk 0:00:45.8]} 28... Bxd7 {[%clk 0:01:34.4]}
29. Ne5 {[%clk 0:00:42.7]} 29... Bc8 {[%clk 0:01:29.2]} 30. Kf1 {[%clk
0:00:37.9]} 30... Ke7 {[%clk 0:01:26.2]} 31. Ke2 {[%clk 0:00:36.9]} 31... f6
{[%clk 0:01:25.4]} 32. Nd3 {[%clk 0:00:33]} 32... Kd6 {[%clk 0:01:24.2]} 33. f4
{[%clk 0:00:33.1]} 33... gxf4 {[%clk 0:01:21.2]} 34. Nxf4 {[%clk 0:00:33.2]}
34... g5 {[%clk 0:01:15.4]} 35. Nh5 {[%clk 0:00:30.4]} 35... Ke5 {[%clk
0:01:15.2]} 36. Kd3 {[%clk 0:00:25.7]} 36... a5 {[%clk 0:01:10.9]} 37. b4 {[%clk
0:00:17.7]} 37... axb4 {[%clk 0:01:02.6]} 38. cxb4 {[%clk 0:00:18.6]} 38... Bd7
{[%clk 0:00:46.5]} 39. Ng7 {[%clk 0:00:11.9]} 39... Bc7 {[%clk 0:00:34.6]} 40.
h4 {[%clk 0:00:10.3]} 40... gxh4 {[%clk 0:00:33.8]} 41. gxh4 {[%clk 0:00:10.4]}
41... Bd6 {[%clk 0:00:33.3]} 42. a3 {[%clk 0:00:09.9]} 42... Bf8 {[%clk
0:00:32.6]} 43. Nh5 {[%clk 0:00:09.5]} 43... Bh6 {[%clk 0:00:25]} 44. Bf3 {[%clk
0:00:05.4]} 44... Be8 {[%clk 0:00:24.2]} 45. Ng3 {[%clk 0:00:05.8]} 45... Bg6+
{[%clk 0:00:22.6]} 46. Ke2 {[%clk 0:00:05.8]} 46... Bf4 {[%clk 0:00:20]} 47. Nh5
{[%clk 0:00:05.5]} 47... Bc1 {[%clk 0:00:18.2]} 48. Bc6 {[%clk 0:00:05]} 48...
Bxh5+ {[%clk 0:00:16.5]} 49. Kd3 {[%clk 0:00:05.7]} 49... Bxa3 {[%clk
0:00:15.7]} 0-1